bitfinex/quotes_ETHUSD_20251122
["timestamp","ask_amount","ask_price","bid_price","bid_amount"]
[1763797655998,0.002,2763.4,2762.6,0.9399]
[1763797656140,0.4822,2763.4,2762.6,0.9399]
[1763797656492,0.90421802,2763.3,2762.6,0.4867]
[1763797656693,0.4802,2763.2,2762.6,0.001]
[1763797657239,0.568012,2763.3,2762.6,0.001]
[1763797657461,0.33693298,2763.2,2762.6,0.001]
[1763797659091,0.0721,2762.7,2762.6,0.001]
[1763797659646,0.568012,2763.3,2762.6,0.492]
[1763797659848,0.3374096,2763.2,2762.6,0.9883]
[1763797660186,0.002,2763.4,2762.6,0.9883]
[1763797660408,0.002,2763.4,2762.7,0.4963]
[1763797664477,0.002,2763.4,2763.3,0.6785]
[1763797664888,0.002,2763.4,2763.3,1.1748]
[1763797665977,0.4981,2763.4,2762.7,3.802]
[1763797666177,0.04523576,2763.3,2762.7,0.53947926]
[1763797666386,0.04523576,2763.3,2762.6,0.6848]
[1763797666576,0.0554,2763.4,2762.6,0.6848]
[1763797667712,0.002,2763.4,2762.7,0.4963]
[1763797673935,0.002,2763.4,2763.3,0.491]
[1763797675049,0.0741,2763.4,2762.7,0.4963]
[1763797676230,0.5472,2763.4,2762.7,0.4963]
[1763797677146,0.5472,2763.4,2762.6,0.1885]
[1763797677452,0.0741,2763.4,2762.6,0.6848]
[1763797677951,0.0741,2763.4,2762.7,0.4963]
[1763797681062,0.002,2763.4,2763.3,0.491]
[1763797681356,0.002,2763.4,2762.7,0.4963]
[1763797681532,0.002,2763.4,2763.3,0.491]
[1763797682052,0.002,2763.4,2763.3,0.9873]
[1763797683158,0.002,2763.4,2763.3,1.392804]
[1763797683658,0.002,2763.4,2763.3,2.29979664]
[1763797683860,0.002,2763.4,2763.3,2.89166668]
[1763797684224,0.002,2763.4,2763.3,6.51052818]
[1763797684678,0.002,2763.4,2763.3,11.36740495]
[1763797684883,0.002,2763.7,2763.6,5.12849664]
[1763797685029,0.4772,2765.4,2763.9,6.16937341]
[1763797685227,0.4772,2765.4,2763.9,7.27731075]
[1763797685450,0.56779282,2765.5,2763.9,7.27731075]
[1763797685451,0.56779282,2765.5,2763.9,11.58961075]
[1763797685655,0.56779282,2765.5,2763.9,15.20768665]
[1763797686158,0.56779282,2765.5,2763.9,17.15656551]
[1763797686461,0.56779282,2765.5,2763.9,11.39168665]
[1763797687128,0.56779282,2765.5,2763.9,13.34056551]
[1763797687328,0.56779282,2765.5,2763.9,11.39168665]
[1763797687528,1.03629282,2765.5,2763.9,11.39168665]
[1763797687959,1.03629282,2765.5,2763.9,11.51368665]
[1763797690164,0.56779282,2765.5,2764.0,1.31249664]
[1763797690369,0.56779282,2765.5,2764.5,1.31249664]
[1763797690575,1.03629282,2765.5,2764.5,1.31249664]
[1763797690744,1.03629282,2765.5,2764.6,0.4832]
[1763797691069,0.56779282,2765.5,2764.6,4.2852]
[1763797691270,0.56779282,2765.5,2764.7,0.55976966]
[1763797691474,0.4685,2765.7,2764.7,1.04296966]
[1763797691687,0.4685,2765.5,2764.7,1.04296966]
[1763797693097,0.4685,2765.5,2764.7,0.55976966]
[1763797693276,0.4685,2765.5,2764.8,0.91937697]
[1763797695093,0.56754824,2765.6,2764.8,0.55817697]
[1763797695297,0.56754824,2765.6,2765.4,0.4622]
[1763797695448,0.1125,2765.8,2765.4,0.4622]
[1763797696084,0.0807,2765.5,2764.9,4.2852]
[1763797696287,0.581,2765.8,2765.0,0.4843377]
[1763797696466,0.581,2765.8,2765.0,0.9675377]
[1763797698714,0.0807,2765.1,2764.2,0.4832]
[1763797699032,0.405504,2765.7,2764.1,0.189]
[1763797699197,0.56760824,2765.5,2764.1,0.189]
[1763797699745,0.4685,2765.4,2764.1,0.6722]
[1763797700094,0.4685,2765.4,2764.2,0.4832]
[1763797703149,0.56760824,2765.5,2764.3,0.405504]
[1763797703337,0.56760824,2765.5,2764.5,0.405504]
[1763797703539,0.56760824,2765.5,2764.6,0.67496966]
[1763797703738,0.56760824,2765.5,2764.7,0.4832]
[1763797703939,1.03610824,2765.5,2764.7,0.4832]
[1763797704855,0.56760824,2765.5,2764.7,0.4832]
[1763797705019,0.56760824,2765.5,2764.8,0.405504]
[1763797705446,0.56760824,2765.5,2764.9,0.4832]
[1763797705822,0.56760824,2765.5,2764.9,0.6052]
[1763797706022,0.56760824,2765.5,2765.0,0.4832]
[1763797709737,0.56760824,2765.5,2765.4,0.4622]
[1763797710754,0.56760824,2765.5,2765.2,0.4832]
[1763797711066,0.56760824,2765.5,2765.4,0.4622]
[1763797713560,1.11300824,2765.5,2764.6,0.19176966]
[1763797713756,1.11300824,2765.5,2764.7,0.33532631]
[1763797713757,0.4647,2765.5,2764.7,0.33532631]
[1763797713979,0.15769488,2765.8,2764.6,0.4832]
[1763797714288,0.0807,2764.7,2764.2,2.54669344]
[1763797714595,0.0807,2764.7,2764.2,0.6052]
[1763797714752,0.0807,2764.7,2764.2,0.122]
[1763797714949,0.0807,2764.7,2764.3,0.70844934]
[1763797715147,0.1502,2764.8,2764.3,0.70844934]
[1763797715549,0.4511,2764.7,2764.3,0.22524934]
[1763797715872,0.1502,2764.8,2764.2,0.122]
[1763797716079,0.1502,2764.8,2764.3,0.4721]
[1763797716881,0.1502,2764.8,2764.2,0.122]
[1763797717074,0.6013,2764.8,2764.2,0.122]
[1763797717584,0.6013,2764.8,2764.1,0.6611]
[1763797718311,0.4528,2764.2,2764.0,0.001]
[1763797718465,0.0962,2764.7,2764.0,0.001]
[1763797718466,0.4492,2764.1,2764.0,0.001]
[1763797718892,0.549,2764.1,2764.0,0.001]
[1763797719895,0.88736067,2764.1,2764.0,0.001]
[1763797720098,0.549,2764.1,2764.0,0.001]
[1763797720662,0.1502,2764.8,2764.0,0.001]
[1763797720863,0.0911,2764.1,2764.0,0.001]
[1763797721294,0.5455,2764.1,2764.0,0.001]
[1763797727163,0.0911,2764.1,2764.0,0.001]
[1763797727583,0.5455,2764.1,2764.0,0.001]
[1763797729007,0.0911,2764.1,2764.0,0.001]
[1763797729194,0.4544,2764.4,2764.0,0.001]
[1763797729369,0.0947,2764.1,2764.0,0.001]
[1763797731299,0.1502,2764.8,2764.0,0.001]
[1763797731481,0.4528,2764.1,2764.0,0.001]
[1763797732826,0.549,2764.1,2764.0,0.001]
[1763797734589,0.4528,2764.1,2764.0,0.001]
[1763797735194,0.549,2764.1,2764.0,0.001]
[1763797740422,6.44501294,2764.1,2764.0,0.001]
[1763797740585,1.31249664,2764.0,2763.7,0.001]
[1763797740786,0.2413,2763.8,2763.7,0.001]
[1763797741230,0.80918262,2763.8,2763.7,0.001]
[1763797741442,1.26358262,2763.8,2763.7,0.001]
[1763797741923,2.05134947,2763.8,2763.7,0.001]
[1763797742127,2.34718368,2763.8,2763.7,0.001]
[1763797742427,2.3019561,2763.8,2763.7,0.001]
[1763797742799,2.34718368,2763.8,2763.7,0.001]
[1763797743131,2.34718368,2763.8,2763.4,0.001]
[1763797743132,5.07458664,2763.5,2763.4,0.001]
[1763797743429,5.07458664,2763.5,2762.6,0.001]
[1763797743430,0.405504,2763.3,2762.6,0.001]
[1763797743726,0.2761,2762.7,2762.6,0.001]
[1763797744093,0.7305,2762.7,2762.6,0.001]
[1763797744288,0.2761,2762.7,2762.6,0.001]
[1763797744951,0.7305,2762.7,2762.6,0.001]
[1763797746713,1.25175956,2762.7,2762.6,0.001]
[1763797748157,1.65726356,2762.7,2762.6,0.001]
[1763797748833,13.73481026,2762.7,2762.6,0.001]
[1763797749664,3.34007619,2762.7,2762.6,0.001]
[1763797749851,2.5642562,2762.7,2762.6,0.001]
[1763797750049,2.1587522,2762.7,2762.6,0.001]
[1763797750568,1.7043522,2762.7,2762.6,0.001]
[1763797750731,1.182462,2762.7,2762.6,0.001]
[1763797751516,0.0911,2762.7,2762.6,0.001]
[1763797751883,0.1844,2762.9,2762.6,0.001]
[1763797753746,0.75248272,2762.9,2762.6,0.001]
[1763797754875,0.75248272,2762.9,2762.8,0.4821]
[1763797754876,0.56808272,2762.9,2762.8,0.4821]
[1763797755274,0.56808272,2762.9,2762.6,0.4725]
[1763797755478,0.56808272,2762.9,2762.6,0.001]
[1763797755792,0.56808272,2762.9,2762.6,0.4725]
[1763797756267,0.56808272,2762.9,2762.6,0.001]
[1763797756467,0.4513,2762.7,2762.6,0.001]
[1763797756670,0.49654559,2762.7,2762.6,0.001]
[1763797757858,0.4513,2762.7,2762.6,0.001]
[1763797758053,0.56808272,2762.9,2762.6,0.001]
[1763797759258,0.4477,2762.7,2762.6,0.001]
[1763797759592,0.89844959,2762.7,2762.6,0.001]
[1763797759794,6.78181866,2762.7,2762.6,0.001]
[1763797759993,7.5168088,2762.7,2762.6,0.001]
[1763797761104,6.004492,2762.3,2762.1,0.001]
[1763797761286,7.19616976,2762.2,2762.1,0.001]
[1763797761484,11.48747598,2762.2,2762.1,0.001]
[1763797761675,9.89047598,2762.2,2762.1,0.001]
[1763797761992,11.55182539,2762.2,2762.1,0.001]
[1763797762192,8.27726539,2762.2,2762.1,0.001]
[1763797762496,11.67067739,2762.2,2762.1,0.001]
[1763797763000,14.31114839,2762.2,2762.1,0.001]
[1763797763297,13.67235839,2762.2,2762.1,0.001]
[1763797763801,8.27726539,2762.2,2762.1,0.001]
[1763797764013,4.09925309,2762.2,2762.1,0.001]
[1763797764161,5.36875368,2762.2,2762.1,0.001]
[1763797765869,2.06591104,2762.2,2762.1,0.001]
[1763797767806,1.96751104,2762.2,2762.1,0.001]
[1763797767971,1.56200704,2762.2,2762.1,0.001]
[1763797768176,0.78750572,2762.2,2762.1,0.001]
[1763797768377,1.00073266,2762.2,2762.1,0.001]
[1763797768691,1.77523398,2762.2,2762.1,0.001]
[1763797769778,1.91888776,2762.2,2762.1,0.001]
[1763797770794,2.32439176,2762.2,2762.1,0.001]
[1763797772008,2.27913798,2762.2,2762.1,0.001]
[1763797772512,2.32439176,2762.2,2762.1,0.001]
[1763797772674,2.27913798,2762.2,2762.1,0.001]
[1763797773909,2.32439176,2762.2,2762.1,0.001]
[1763797774797,2.27913798,2762.2,2762.1,0.001]
[1763797775184,2.18073798,2762.2,2762.1,0.001]
[1763797775393,1.32393398,2762.2,2762.1,0.001]
[1763797775591,1.77163398,2762.2,2762.1,0.001]
[1763797777291,1.91878776,2762.2,2762.1,0.001]
[1763797777704,1.87353398,2762.2,2762.1,0.001]
[1763797777901,1.77163398,2762.2,2762.1,0.001]
[1763797778379,1.91878776,2762.2,2762.1,0.001]
[1763797778576,2.32429176,2762.2,2762.1,0.001]
[1763797778799,2.17713798,2762.2,2762.1,0.001]
[1763797779517,2.27903798,2762.2,2762.1,0.001]
[1763797779715,2.32429176,2762.2,2762.1,0.001]
[1763797780318,2.27903798,2762.2,2762.1,0.001]
[1763797780481,2.32429176,2762.2,2762.1,0.001]
[1763797781279,18.21126559,2762.2,2762.1,0.001]
[1763797781499,18.61725002,2762.2,2762.1,0.001]
[1763797781697,20.36428799,2762.2,2762.1,0.001]
[1763797781898,19.07426911,2762.2,2762.1,0.001]
[1763797782299,31.26871911,2762.2,2762.1,0.001]
[1763797782990,6.24614862,2762.2,2762.1,0.001]
[1763797783185,5.9141954,2762.2,2762.1,0.001]
[1763797783424,17.8591684,2762.2,2762.1,0.001]
[1763797783620,17.03826062,2762.2,2762.1,0.001]
[1763797784322,18.87327962,2762.2,2762.1,0.001]
[1763797784550,19.32451783,2762.2,2762.1,0.001]
[1763797784921,8.61153862,2762.2,2762.1,0.001]
[1763797785328,26.02803425,2762.2,2762.1,0.001]
[1763797786314,31.90548325,2762.2,2762.1,0.001]
[1763797786848,30.62598325,2762.2,2762.1,0.001]
[1763797787026,30.62118624,2762.2,2762.1,0.001]
[1763797787211,30.76637548,2762.2,2762.1,0.001]
[1763797787414,30.09907048,2762.2,2762.1,0.001]
[1763797787615,12.85487348,2762.2,2762.1,0.001]
[1763797788429,19.21057148,2762.2,2762.1,0.001]
[1763797788629,12.76326124,2762.2,2762.1,0.001]
[1763797788956,12.43185253,2762.2,2762.1,0.001]
[1763797789332,9.8477009,2762.2,2762.1,0.001]
[1763797789731,9.9496009,2762.2,2762.1,0.001]
[1763797790054,9.8477009,2762.2,2762.1,0.001]
[1763797790741,2.93979423,2762.2,2762.1,0.001]
[1763797791053,6.9330347,2762.2,2762.1,0.001]
[1763797791351,2.3922249,2762.2,2762.1,0.001]
[1763797791549,5.1826969,2762.2,2762.1,0.001]
[1763797791854,5.6367969,2762.2,2762.1,0.001]
[1763797792324,2.8463249,2762.2,2762.1,0.001]
[1763797792530,5.8710929,2762.2,2762.1,0.001]
[1763797792925,5.4169929,2762.2,2762.1,0.001]
[1763797793146,5.1886969,2762.2,2762.1,0.001]
[1763797793345,2.3922249,2762.2,2762.1,0.001]
[1763797793555,4.4556139,2762.2,2762.1,0.001]
[1763797794423,5.6871759,2762.2,2762.1,0.001]
[1763797795475,7.3063839,2762.2,2762.1,0.001]
[1763797795977,9.71254987,2762.2,2762.1,0.001]
[1763797796321,10.16378808,2762.2,2762.1,0.001]
[1763797796628,30.37231811,2762.2,2762.1,0.001]
[1763797797357,32.32523956,2762.2,2762.1,0.001]
[1763797797851,30.37231811,2762.2,2762.1,0.001]
[1763797798025,30.37884688,2762.2,2762.1,0.001]
[1763797798949,21.84876388,2762.2,2762.1,0.001]
[1763797799268,19.75793695,2762.2,2762.1,0.001]
[1763797799463,29.04983695,2762.2,2762.1,0.001]
[1763797799668,3.33415795,2762.2,2762.1,0.001]
[1763797799844,2.73773261,2762.2,2762.1,0.001]
[1763797800055,5.72837061,2762.2,2762.1,0.001]
[1763797800236,7.68096113,2762.2,2762.1,0.001]
[1763797800567,12.51457413,2762.2,2762.1,0.001]
[1763797800769,11.47024091,2762.2,2762.1,0.001]
[1763797800971,29.29550894,2762.1,2761.8,0.001]
[1763797801268,18.17634612,2762.1,2761.8,0.001]
[1763797801580,34.66132412,2762.1,2761.8,0.001]
[1763797802241,34.80652917,2762.1,2761.8,0.001]
[1763797802864,27.19164117,2762.1,2761.8,0.001]
[1763797803201,27.19096479,2762.1,2761.8,0.001]
[1763797803539,33.63809379,2762.1,2761.8,0.001]
[1763797803853,33.63809379,2762.1,2762.0,0.972]
[1763797803854,4.96064385,2762.1,2762.0,0.972]
[1763797804041,1.11933265,2762.1,2762.0,0.972]
[1763797804237,1.21133265,2762.1,2762.0,0.001]
[1763797804479,1.86074378,2762.1,2762.0,0.001]
[1763797804699,21.8994249,2762.1,2762.0,0.001]
[1763797804992,15.72392377,2762.1,2762.0,0.001]
[1763797805194,2.43136214,2762.1,2762.0,0.972]
[1763797805684,1.5243695,2762.1,2762.0,0.972]
[1763797805988,2.49932507,2762.1,2762.0,0.972]
[1763797806148,2.09382107,2762.1,2762.0,0.972]
[1763797806348,2.49932507,2762.1,2762.0,0.001]
[1763797806644,2.49932507,2762.1,2762.0,0.4911]
[1763797806843,2.49932507,2762.1,2762.0,0.95]
[1763797809387,2.09382107,2762.1,2762.0,0.95]
[1763797809576,0.33851179,2762.1,2762.0,0.95]
[1763797810082,15.38044368,2762.1,2762.0,0.001]
[1763797810280,17.09138532,2762.1,2762.0,0.001]
[1763797810500,16.0905864,2762.1,2762.0,0.001]
[1763797810690,15.4565354,2762.1,2762.0,0.001]
[1763797811120,16.3127054,2762.1,2762.0,0.001]
[1763797812181,6.0378404,2762.1,2762.0,0.001]
[1763797812385,5.9755404,2762.1,2762.0,0.001]
[1763797812636,6.0378404,2762.1,2762.0,0.001]
[1763797812784,5.9755404,2762.1,2762.0,0.001]
[1763797813137,5.9825094,2762.1,2762.0,0.001]
[1763797813418,3.6945074,2762.1,2762.0,0.4911]
[1763797813613,5.6156154,2762.1,2762.0,0.4911]
[1763797813835,12.14554682,2762.1,2762.0,0.001]
[1763797814132,13.88869178,2762.1,2762.0,0.001]
[1763797815037,13.88869178,2762.1,2762.0,0.4911]
[1763797815038,3.6945074,2762.1,2762.0,0.4911]
[1763797815223,4.99449933,2762.1,2762.0,0.4911]
[1763797815425,2.4743695,2762.1,2762.0,0.95]
[1763797815794,2.4743695,2762.1,2762.0,0.4911]
[1763797816129,2.5366695,2762.1,2762.0,0.001]
[1763797816896,2.4743695,2762.1,2762.0,0.4911]
[1763797817099,2.4743695,2762.1,2762.0,0.95]
[1763797817290,2.4743695,2762.1,2762.0,0.4911]
[1763797817490,2.94290491,2762.1,2762.0,0.95]
[1763797818028,3.91219755,2762.1,2762.0,0.001]
[1763797819004,3.85189755,2762.1,2762.0,0.001]
[1763797819318,3.89715297,2762.1,2762.0,0.001]
[1763797819638,14.71035097,2762.1,2762.0,0.001]
[1763797819818,14.66509555,2762.1,2762.0,0.001]
[1763797820635,31.47645255,2762.1,2762.0,0.001]
[1763797820796,6.66430355,2762.1,2762.0,0.001]
[1763797821614,10.47236155,2762.1,2762.0,0.001]
[1763797821795,9.93736155,2762.1,2762.0,0.001]
[1763797822014,5.05890466,2762.1,2762.0,0.4911]
[1763797822213,6.41161657,2762.1,2762.0,0.4911]
[1763797822541,6.58959657,2762.1,2762.0,0.4911]
[1763797822857,6.58959657,2762.1,2762.0,0.95]
[1763797822858,4.42018657,2762.1,2762.0,0.95]
[1763797823947,3.06994623,2762.1,2762.0,0.95]
[1763797824255,1.5263695,2762.1,2762.0,0.4911]
[1763797824431,2.43336214,2762.1,2762.0,0.95]
[1763797825018,2.02785814,2762.1,2762.0,0.95]
[1763797828354,6.19620115,2762.1,2762.0,0.001]
[1763797828556,5.13368215,2762.1,2762.0,0.001]
[1763797828956,2.87433215,2762.1,2762.0,0.001]
[1763797829337,2.89712172,2762.1,2762.0,0.4911]
[1763797830356,7.37543536,2762.1,2762.0,0.001]
[1763797830663,5.13874573,2762.1,2762.0,0.001]
[1763797830964,5.67510115,2762.1,2762.0,0.001]
[1763797831456,3.36543215,2762.1,2762.0,0.001]
[1763797831647,4.66638706,2762.1,2762.0,0.001]
[1763797832022,4.62113164,2762.1,2762.0,0.4911]
[1763797832227,3.8997515,2762.1,2762.0,0.95]
[1763797835872,2.92446214,2762.1,2762.0,0.95]
[1763797836166,3.9004985,2762.1,2762.0,0.95]
[1763797836468,2.92446214,2762.1,2762.0,0.95]
[1763797837284,2.51895814,2762.1,2762.0,0.95]
[1763797837433,3.00413415,2762.1,2762.0,0.95]
[1763797837889,2.02785814,2762.1,2762.0,0.95]
[1763797838168,3.00413415,2762.1,2762.0,0.95]
[1763797838328,2.02785814,2762.1,2762.0,0.95]
[1763797838733,3.00413415,2762.1,2762.0,0.95]
[1763797838935,3.53048994,2762.1,2762.0,0.95]
[1763797839338,3.53048994,2762.1,2762.0,0.001]
[1763797839667,3.53048994,2762.1,2762.0,0.4741]
[1763797839871,2.55421393,2762.1,2762.0,0.9458]
[1763797840367,2.55421393,2762.1,2762.0,0.4741]
[1763797840669,2.95971793,2762.1,2762.0,0.4741]
[1763797841093,3.02571793,2762.1,2762.0,0.001]
[1763797841438,1.64722129,2762.1,2762.0,0.9458]
[1763797841678,1.12131238,2762.1,2762.0,0.9458]
[1763797842159,0.34095867,2762.1,2762.0,0.9458]
[1763797844171,12.07431435,2762.1,2762.0,0.001]
[1763797844371,11.84537793,2762.1,2762.0,0.001]
[1763797844575,7.47386293,2762.1,2762.0,0.001]
[1763797844777,9.52631541,2762.1,2762.0,0.001]
[1763797844952,10.00611541,2762.1,2762.0,0.001]
[1763797845151,25.39135441,2762.1,2762.0,0.001]
[1763797845351,25.85763931,2762.1,2762.0,0.001]
[1763797845741,23.72253331,2762.1,2762.0,0.001]
[1763797845939,23.72253331,2762.1,2761.8,0.001]
[1763797845940,0.405504,2762.0,2761.8,0.001]
[1763797846142,25.89581097,2761.9,2761.8,0.001]
[1763797846456,26.31683718,2761.9,2761.8,0.001]
[1763797846645,26.79663718,2761.9,2761.8,0.001]
[1763797847247,27.19184518,2761.9,2761.8,0.001]
[1763797847779,19.49209018,2761.9,2761.8,0.001]
[1763797847977,10.90944603,2761.9,2761.8,0.001]
[1763797848155,18.06607477,2761.9,2761.8,0.001]
[1763797848392,16.46834377,2761.9,2761.8,0.001]
[1763797848619,10.61943343,2761.9,2761.8,0.001]
[1763797848830,6.74995743,2761.9,2761.8,0.001]
[1763797849127,6.68411612,2761.9,2761.8,0.001]
[1763797849309,10.02538089,2761.9,2761.8,0.001]
[1763797849508,8.6510502,2761.9,2761.8,0.001]
[1763797849704,3.79453445,2761.9,2761.8,0.4741]
[1763797849912,7.04501645,2761.9,2761.8,0.4741]
[1763797850285,3.79453445,2761.9,2761.8,0.4741]
[1763797850882,7.70473409,2761.9,2761.8,0.4741]
[1763797851701,12.88373609,2761.9,2761.8,0.001]
[1763797853213,11.93776609,2761.9,2761.8,0.001]
[1763797853420,11.32404909,2761.9,2761.8,0.001]
[1763797853604,10.24392309,2761.9,2761.8,0.001]
[1763797853802,10.04092309,2761.9,2761.8,0.001]
[1763797854205,10.60920889,2761.9,2761.8,0.001]
[1763797854500,8.33841989,2761.9,2761.8,0.001]
[1763797855113,8.27301989,2761.9,2761.8,0.001]
[1763797855623,9.57451765,2761.9,2761.8,0.4741]
[1763797856432,9.57451765,2761.9,2761.8,0.9458]
[1763797856735,8.27301989,2761.9,2761.8,0.9458]
[1763797858990,8.27301989,2761.9,2761.8,0.4741]
[1763797859328,9.57451765,2761.9,2761.8,0.4741]
[1763797860325,8.27301989,2761.9,2761.8,0.4741]
[1763797861629,8.27301989,2761.9,2761.8,0.9458]
[1763797861835,1.11934204,2761.9,2761.8,0.9458]
[1763797861994,0.33895867,2761.9,2761.8,0.9458]
[1763797862195,0.002,2762.1,2761.9,0.4731]
[1763797862533,0.002,2762.2,2762.0,0.4731]
[1763797862737,0.34104157,2762.7,2762.4,0.4731]
[1763797863038,0.002,2762.8,2762.6,0.4731]
[1763797863364,0.002,2762.8,2762.7,0.4731]
[1763797863545,0.97620302,2763.6,2762.2,0.4717]
[1763797863546,0.97620302,2763.8,2762.8,0.4731]
[1763797863744,1.95129975,2764.2,2763.7,0.4731]
[1763797863745,1.08994789,2764.1,2763.7,0.4731]
[1763797864036,0.002,2764.1,2764.0,0.4731]
[1763797864552,0.34023021,2764.1,2764.0,0.9448]
[1763797864747,0.002,2764.1,2764.0,0.9448]
[1763797870016,0.002,2764.1,2764.0,0.4731]
[1763797870215,0.50130175,2764.1,2763.7,0.4917]
[1763797870442,0.50130175,2764.1,2764.0,0.4728]
[1763797871053,0.002,2764.1,2764.0,0.4728]
[1763797871254,0.002,2764.1,2764.0,0.9645]
[1763797878766,0.002,2764.4,2764.0,0.9645]
[1763797879035,0.002,2764.4,2764.3,0.6624]
[1763797879583,0.002,2764.7,2764.3,0.6624]
[1763797879584,0.002,2764.7,2764.3,1.1541]
[1763797879875,0.002,2764.7,2764.6,0.4728]
[1763797880172,0.002,2764.7,2764.6,0.9645]
[1763797880562,0.002,2764.7,2764.6,0.4728]
[1763797880872,0.002,2764.7,2764.6,0.9645]
[1763797882173,0.56974615,2764.7,2764.6,0.9645]
[1763797884276,0.002,2764.7,2764.6,0.9645]
[1763797884847,0.002,2764.7,2764.6,0.4728]
[1763797885084,0.002,2764.7,2764.3,0.1896]
[1763797885900,0.96189264,2764.4,2763.6,0.4917]
[1763797886127,0.55474061,2764.3,2763.6,0.4917]
[1763797886263,0.405504,2764.2,2763.2,0.4917]
[1763797887796,1.04494061,2764.3,2763.2,0.4917]
[1763797888102,0.405504,2764.2,2763.2,0.4917]
[1763797888316,0.900104,2764.2,2763.2,0.4917]
[1763797888517,1.31249664,2764.0,2763.2,0.4917]
[1763797888826,0.405504,2763.8,2762.9,0.001]
[1763797889109,0.74204507,2763.8,2762.9,0.001]
[1763797889405,1.23664507,2763.8,2762.9,0.001]
[1763797889699,0.405504,2763.6,2762.9,0.001]
[1763797890078,0.33658623,2763.6,2762.9,0.001]
[1763797890278,0.405504,2763.7,2763.3,0.001]
[1763797890585,0.29189622,2763.6,2763.3,0.001]
[1763797890793,0.62848245,2763.6,2763.3,0.001]
[1763797891014,0.90699264,2763.8,2763.3,0.001]
[1763797891214,1.51953173,2763.7,2763.3,0.001]
[1763797891369,0.0549,2763.4,2763.3,0.001]
[1763797892620,1.11402773,2763.5,2763.3,0.001]
[1763797892773,0.33679188,2763.4,2763.3,0.001]
[1763797892968,0.405504,2763.6,2763.3,0.001]
[1763797893281,0.0549,2763.4,2763.3,0.001]
[1763797893984,0.460404,2763.4,2763.3,0.001]
[1763797894189,0.79719588,2763.4,2763.3,0.001]
[1763797894591,4.63600046,2763.4,2763.3,0.001]
[1763797894791,1.11443646,2763.4,2763.3,0.001]
[1763797894989,1.17363646,2763.4,2763.3,0.001]
[1763797895317,1.57914046,2763.4,2763.3,0.001]
[1763797895481,2.3697621,2763.4,2763.3,0.001]
[1763797895818,1.9055621,2763.4,2763.3,0.001]
[1763797896013,1.8463621,2763.4,2763.3,0.001]
[1763797896197,1.51994046,2763.4,2763.3,0.001]
[1763797896401,1.59984046,2763.4,2763.3,0.001]
[1763797896574,1.28759588,2763.4,2763.3,0.001]
[1763797896779,2.9722331,2763.4,2763.3,0.001]
[1763797897019,6.4312921,2763.4,2763.3,0.001]
[1763797897226,4.07391366,2763.4,2763.3,0.001]
[1763797897407,6.42284466,2763.4,2763.3,0.001]
[1763797897718,4.07391366,2763.4,2763.3,0.001]
[1763797897891,7.19298981,2763.4,2763.3,0.001]
[1763797898076,1.68251261,2763.4,2763.3,0.001]
[1763797898279,0.41669188,2763.4,2763.3,0.001]
[1763797898521,0.77625341,2763.8,2763.3,0.4746]
[1763797898846,0.33696109,2763.7,2763.3,0.9578]
[1763797899308,0.49916109,2763.9,2763.3,0.9578]
[1763797899478,1.58076359,2763.9,2763.3,0.4746]
[1763797899678,0.33696109,2763.8,2763.3,0.4746]
[1763797899880,0.4631,2763.4,2763.3,0.001]
[1763797900121,6.69805804,2763.4,2763.3,0.001]
[1763797900292,2.88878707,2763.4,2763.3,0.001]
[1763797900613,3.68145126,2763.4,2763.3,0.001]
[1763797900801,6.16330126,2763.4,2763.3,0.001]
[1763797901012,6.48176713,2763.4,2763.3,0.001]
[1763797901214,6.52700126,2763.4,2763.3,0.001]
[1763797901414,6.94400126,2763.4,2763.3,0.001]
[1763797902397,8.28000126,2763.4,2763.3,0.001]
[1763797902595,7.47018189,2763.4,2763.3,0.001]
[1763797902800,12.33018887,2763.4,2763.3,0.001]
[1763797903116,0.405504,2763.1,2763.0,0.001]
[1763797903314,16.06445633,2763.1,2763.0,0.001]
[1763797903516,2.03256599,2763.1,2763.0,0.001]
[1763797903728,1.19309043,2763.1,2763.0,0.001]
[1763797903932,0.8822479,2763.1,2763.0,0.001]
[1763797904157,2.97098707,2763.1,2763.0,0.001]
[1763797904433,9.97160711,2763.1,2763.0,0.001]
[1763797904609,13.07391373,2763.1,2763.0,0.001]
[1763797904799,15.03743629,2763.1,2763.0,0.001]
[1763797904995,8.04920529,2763.1,2763.0,0.001]
[1763797905195,4.46910963,2763.1,2763.0,0.001]
[1763797905434,2.97098707,2763.1,2763.0,0.001]
[1763797905930,2.42568707,2763.1,2763.0,0.001]
[1763797906136,1.31249664,2763.1,2763.0,0.001]
[1763797906339,0.90699264,2763.1,2763.0,0.001]
[1763797906705,1.31249664,2763.1,2763.0,0.001]
[1763797907031,0.90699264,2763.1,2763.0,0.4746]
[1763797907222,0.90699264,2763.1,2763.0,0.9578]
[1763797907418,0.90699264,2763.1,2763.0,0.001]
[1763797907825,1.31249664,2763.1,2763.0,0.001]
[1763797908022,1.39239664,2763.1,2763.0,0.001]
[1763797908607,1.31249664,2763.1,2763.0,0.4746]
[1763797908814,1.31249664,2763.1,2763.0,0.9578]
[1763797908815,0.90699264,2763.1,2763.0,0.9578]
[1763797909438,0.1622,2763.9,2763.0,0.9578]
[1763797909615,1.11127989,2764.0,2763.5,0.4736]
[1763797909810,0.33633042,2763.9,2763.1,0.6774]
[1763797910148,0.405504,2764.0,2763.2,0.4832]